[Event "FRA-ch Open A-D 2018"]
[Site "Nimes"]
[Date "2018.08.25"]
[Round "8"]
[White "Chemier, Maxime"]
[Black "Fischer, Thorange"]
[Result "1/2-1/2"]
[ECO "B40"]
[WhiteElo "1626"]
[BlackElo "1577"]
[Annotator "NA RC"]
[PlyCount "139"]
[EventDate "2018.08.18"]
[EventType "tourn"]
[EventCountry "FRA"]
[SourceTitle "playchess.com"]
[Source "ChessBase"]
[SourceQuality "1"]
[TimeControl "40/5400+30:1800+30"]

1. e4 {[%emt 0:00:00]} c5 {[%emt 0:00:00]} 2. Nf3 {[%emt 0:00:00]} e6 {[%emt 0:00:00]} 3. d4 {[%emt 0:00:02]} cxd4 {[%emt 0:00:00]} 4. Nxd4 {[%emt 0:00:03]} Nf6 {[%emt 0:00:15]} 5. Nc3 {[%emt 0:00:09]} Nc6 {[%emt 0:00:08]} 6. Bc4 {[%emt 0:00:57]} Qc7 {[%emt 0:00:18]} 7. Bb3 {[%emt 0:00:59]} a6 {[%emt 0:00:00]} 8. a3 {[%emt 0:01:32]} Nxd4 {[%emt 0:10:10]} 9. Qxd4 {[%emt 0:04:11]} Bc5 {[%emt 0:04:02]} 10. Qd1 {[%emt 0:02:29]} b5 {[%emt 0:00:21]} 11. Bg5 {[%emt 0:04:24]} Be7 {[%emt 0:02:16]} 12. O-O {[%emt 0:06:45]} Bb7 {[%emt 0:00:31]} 13. Qd3 {[%emt 0:12:17]} Ng4 {[%emt 0:02:35]} 14. Qh3 {[%emt 0:01:25]} Bxg5 {[%emt 0:11:26]} 15. Qxg4 {[%emt 0:00:24]} Bf6 {[%emt 0:00:05]} 16. Nd1 {[%emt 0:00:58]} Bc6 {[%emt 0:13:06]} 17. c3 {[%emt 0:06:29]} O-O {[%emt 0:11:00]} 18. Ne3 {[%emt 0:06:49]} a5 {[%emt 0:01:23]} 19. Nc2 {[%emt 0:01:52]} Qb7 {[%emt 0:04:45]} 20. Rfe1 {[%emt 0:04:35]} d5 {[%emt 0:04:05]} 21. e5 {[%emt 0:07:15]} Be7 {[%emt 0:00:11]} 22. Nd4 {[%emt 0:03:35]} b4 {[%emt 0:04:51]} 23. axb4 {[%emt 0:02:29]} axb4 {[%emt 0:07:11]} 24. Nxc6 {[%emt 0:00:30]} Qxc6 {[%emt 0:00:07]} 25. c4 {[%emt 0:00:24]} dxc4 {[%emt 0:02:36]} 26. Bxc4 {[%emt 0:02:11]} Rxa1 {[%emt 0:04:31]} 27. Rxa1 {[%emt 0:00:24]} Ra8 {[%emt 0:05:27]} 28. Rd1 {[%emt 0:03:41]} Bc5 {[%emt 0:01:53]} 29. Qe2 {[%emt 0:06:30]} Qb6 {[%emt 0:01:14]} 30. b3 {[%emt 0:01:40]} Bd4 {[%emt 0:00:39]} 31. Kf1 {[%emt 0:01:05]} h6 {[%emt 0:03:32]} 32. Qe4 {[%emt 0:02:18]} Rd8 {[%emt 0:00:50]} 33. Qd3 {[%emt 0:00:28]} Kf8 {[%emt 0:01:06]} 34. f4 {[%emt 0:03:30]} Ke7 {[%emt 0:00:55]} 35. Ke2 {[%emt 0:02:54]} Qa7 {[%emt 0:03:18]} 36. Qd2 {[%emt 0:02:13]} Qb7 {[%emt 0:00:24]} 37. Kf1 {[%emt 0:00:52]} Qb6 {[%emt 0:00:58]} 38. Qd3 {[%emt 0:03:10]} Qc5 {[%emt 0:00:36]} 39. Ke2 {[%emt 0:03:08]} Qa7 {[%emt 0:00:18]} 40. Qd2 {[%emt 0:00:44]} Qb7 {[%emt 0:00:34]} 41. Kf1 {[%emt 0:31:39]} Qb6 {[%emt 0:30:19]} 42. Qd3 {[%emt 0:02:22]} Qa7 {[%emt 0:02:32]} 43. Ke2 {[%emt 0:00:00]} Bb6 {[%emt 0:00:00]} 44. Qf3 {[%emt 0:00:00]} Qa2+ {[%emt 0:00:00]} 45. Ke1 {[%emt 0:00:00]} Bf2+ {[%emt 0:00:00]} 46. Kf1 {[%emt 0:00:00]} Rxd1+ {[%emt 0:00:00]} 47. Qxd1 {[%emt 0:00:00]} Bc5 {[%emt 0:00:00]} 48. Qf3 {[%emt 0:00:00]} Kd8 {[%emt 0:00:00]} 49. Ke1 {[%emt 0:00:00]} Kc7 {[%emt 0:00:00]} 50. Qe2 {[%emt 0:00:00]} Qb1+ 51. Kd2 {[%emt 0:00:00]} Qb2+ {[%emt 0:00:34]} 52. Kd1 {[%emt 0:00:00]} Qa1+ {[%emt 0:03:18]} 53. Kc2 {[%emt 0:00:00]} Qc3+ {[%emt 0:00:03]} 54. Kd1 {[%emt 0:02:29]} Be3 {[%emt 0:00:08]} 55. Qc2 {[%emt 0:00:23]} Qxc2+ {[%emt 0:00:33]} 56. Kxc2 {[%emt 0:00:08]} Bxf4 {[%emt 0:00:02]} 57. h3 {[%emt 0:00:33]} Bxe5 {[%emt 0:00:04]} 58. Kd3 {[%emt 0:00:06]} Kd6 {[%emt 0:00:11]} 59. g4 {[%emt 0:01:59]} f5 {[%emt 0:01:02]} 60. Ke3 {[%emt 0:00:46]} f4+ {[%emt 0:00:16]} 61. Ke4 {[%emt 0:00:05]} g5 {[%emt 0:00:09]} 62. Kf3 {[%emt 0:01:23]} Bc3 {[%emt 0:01:44]} 63. Ke4 {[%emt 0:00:22]} f3 {[%emt 0:01:46]} 64. Kxf3 {[%emt 0:00:15]} Ke5 {[%emt 0:00:03]} 65. Ke3 {[%emt 0:00:31]} Bd4+ {[%emt 0:00:11]} 66. Kf3 {[%emt 0:00:09]} Bc5 {[%emt 0:00:13]} 67. Kg3 {[%emt 0:00:30]} Be3 {[%emt 0:00:43]} 68. Kf3 {[%emt 0:00:12]} Bf4 {[%emt 0:00:05]} 69. Ke2 {[%emt 0:00:22]} Bg3 {[%emt 0:00:54]} 70. Kf3 1/2-1/2

[Event "FRA-ch Open A-D 2018"]
[Site "Nimes"]
[Date "2018.08.25"]
[Round "8"]
[White "Koch, Emilie"]
[Black "Choiset, Arthur"]
[Result "0-1"]
[ECO "B23"]
[WhiteElo "1498"]
[BlackElo "1313"]
[Annotator "NA RC"]
[PlyCount "60"]
[EventDate "2018.08.18"]
[EventType "tourn"]
[EventCountry "FRA"]
[SourceTitle "playchess.com"]
[Source "ChessBase"]
[SourceQuality "1"]
[TimeControl "40/5400+30:1800+30"]

1. e4 {[%emt 0:00:00]} c5 {[%emt 0:00:00]} 2. Nc3 {[%emt 0:00:03]} d6 {[%emt 0:00:25]} 3. f4 {[%emt 0:00:16]} Nc6 {[%emt 0:00:38]} 4. Nf3 {[%emt 0:00:15]} Nf6 {[%emt 0:00:43]} 5. Bc4 {[%emt 0:00:59]} e6 {[%emt 0:01:17]} 6. d3 {[%emt 0:05:51]} Be7 {[%emt 0:03:17]} 7. O-O {[%emt 0:03:01]} a6 {[%emt 0:02:07]} 8. a4 {[%emt 0:01:54]} O-O {[%emt 0:01:24]} 9. e5 {[%emt 0:06:53]} dxe5 {[%emt 0:02:10]} 10. fxe5 {[%emt 0:01:49]} Ng4 {[%emt 0:01:00]} 11. Qe1 {[%emt 0:05:53]} Ncxe5 {[%emt 0:07:42]} 12. Nxe5 {[%emt 0:10:41]} Qd4+ {[%emt 0:02:23]} 13. Kh1 {[%emt 0:07:06]} Qxe5 {[%emt 0:02:28]} 14. Qxe5 {[%emt 0:16:06]} Nxe5 {[%emt 0:00:07]} 15. Ba2 {[%emt 0:00:22]} b6 16. Bf4 {[%emt 0:02:43]} Ng6 {[%emt 0:08:08]} 17. Bc7 {[%emt 0:02:44]} Bd8 {[%emt 0:12:06]} 18. Bd6 {[%emt 0:01:07]} Re8 {[%emt 0:00:00]} 19. Rae1 Be7 20. Bc7 {[%emt 0:12:33]} b5 {[%emt 0:09:26]} 21. axb5 {[%emt 0:00:26]} axb5 {[%emt 0:00:07]} 22. Bb3 {[%emt 0:02:01]} Bd7 {[%emt 0:08:48]} 23. Ne4 {[%emt 0:02:34]} c4 {[%emt 0:04:52]} 24. dxc4 {[%emt 0:02:24]} bxc4 {[%emt 0:00:09]} 25. Bxc4 {[%emt 0:01:58]} Rec8 {[%emt 0:00:18]} 26. Bb3 {[%emt 0:04:55]} Rxc7 {[%emt 0:00:14]} 27. Rf2 {[%emt 0:01:48]} f5 {[%emt 0:01:59]} 28. Nc3 {[%emt 0:02:07]} Kf8 {[%emt 0:08:52]} 29. Bxe6 {[%emt 0:01:25]} Bxe6 {[%emt 0:00:10]} 30. Rxe6 {[%emt 0:00:08]} Ra1+ {[%emt 0:00:08]} 0-1

[Event "FRA-ch Open A-D 2018"]
[Site "Nimes"]
[Date "2018.08.25"]
[Round "8"]
[White "Gignoux-Pezzetti, Nathan"]
[Black "Alcindor, Samuel"]
[Result "0-1"]
[ECO "B20"]
[WhiteElo "1458"]
[BlackElo "1462"]
[Annotator "NA RC"]
[PlyCount "76"]
[EventDate "2018.08.18"]
[EventType "tourn"]
[EventCountry "FRA"]
[SourceTitle "playchess.com"]
[Source "ChessBase"]
[SourceQuality "1"]
[TimeControl "40/5400+30:1800+30"]

1. e4 {[%emt 0:00:00]} c5 {[%emt 0:00:00]} 2. c4 {[%emt 0:00:00]} Nc6 {[%emt 0:00:14]} 3. Nc3 {[%emt 0:00:00]} g6 {[%emt 0:00:25]} 4. g3 {[%emt 0:00:00]} Bg7 {[%emt 0:00:34]} 5. Bg2 {[%emt 0:00:34]} Nf6 {[%emt 0:02:47]} 6. Nge2 {[%emt 0:00:22]} d6 {[%emt 0:02:16]} 7. O-O {[%emt 0:00:24]} O-O {[%emt 0:04:08]} 8. d3 {[%emt 0:00:25]} Rb8 {[%emt 0:01:55]} 9. h3 {[%emt 0:03:13]} a6 {[%emt 0:00:49]} 10. Rb1 {[%emt 0:11:01]} b5 {[%emt 0:05:35]} 11. b3 {[%emt 0:01:42]} b4 {[%emt 0:00:31]} 12. Nd5 {[%emt 0:04:18]} Qa5 {[%emt 0:04:49]} 13. Nxf6+ {[%emt 0:07:56]} Bxf6 {[%emt 0:00:24]} 14. Qc2 {[%emt 0:00:18]} Bb7 {[%emt 0:04:50]} 15. Be3 {[%emt 0:03:16]} Bg7 {[%emt 0:05:15]} 16. f4 {[%emt 0:01:49]} Bh6 {[%emt 0:06:21]} 17. g4 {[%emt 0:05:36]} e6 {[%emt 0:02:43]} 18. g5 {[%emt 0:09:45]} Bg7 {[%emt 0:00:14]} 19. h4 {[%emt 0:04:02]} Ne7 {[%emt 0:14:36]} 20. d4 cxd4 {[%emt 0:06:50]} 21. Bxd4 {[%emt 0:14:35]} Bxd4+ {[%emt 0:01:47]} 22. Nxd4 {[%emt 0:00:27]} Qc5 {[%emt 0:00:20]} 23. Qf2 {[%emt 0:01:22]} d5 {[%emt 0:02:11]} 24. cxd5 {[%emt 0:06:37]} exd5 {[%emt 0:00:25]} 25. Rbc1 {[%emt 0:02:35]} Qa5 {[%emt 0:02:44]} 26. exd5 {[%emt 0:01:25]} Nxd5 {[%emt 0:01:06]} 27. Bxd5 {[%emt 0:05:51]} Qxd5 {[%emt 0:00:56]} 28. Nf3 {[%emt 0:01:36]} Qf5 {[%emt 0:03:19]} 29. Ne5 {[%emt 0:02:33]} Rbc8 {[%emt 0:02:19]} 30. Rc4 {[%emt 0:07:49]} Bd5 {[%emt 0:09:23]} 31. Rd1 Bxc4 {[%emt 0:01:35]} 32. Nd7 {[%emt 0:05:56]} Qg4+ {[%emt 0:01:24]} 33. Kh2 {[%emt 0:00:30]} Qxd1 {[%emt 0:00:50]} 34. Nf6+ {[%emt 0:00:15]} Kg7 {[%emt 0:01:40]} 35. Kg3 {[%emt 0:00:43]} Qd3+ {[%emt 0:00:39]} 36. Kg2 {[%emt 0:00:32]} Bd5+ {[%emt 0:00:25]} 37. Kg1 {[%emt 0:00:31]} Rc1+ {[%emt 0:00:15]} 38. Qf1 {[%emt 0:00:23]} Qg3# 0-1

[Event "FRA-ch Open A-D 2018"]
[Site "Nimes"]
[Date "2018.08.25"]
[Round "8"]
[White "Desplanque, Christophe"]
[Black "Davidou, Delphine"]
[Result "0-1"]
[ECO "A00"]
[WhiteElo "1454"]
[BlackElo "1446"]
[Annotator "NA RC"]
[PlyCount "120"]
[EventDate "2018.08.18"]
[EventType "tourn"]
[EventCountry "FRA"]
[SourceTitle "playchess.com"]
[Source "ChessBase"]
[SourceQuality "1"]
[TimeControl "40/5400+30:1800+30"]

1. b4 Nf6 2. Bb2 {[%emt 0:00:32]} g6 {[%emt 0:01:27]} 3. Bxf6 {[%emt 0:01:09]} exf6 {[%emt 0:00:17]} 4. a3 {[%emt 0:00:14]} Bg7 {[%emt 0:02:32]} 5. e3 {[%emt 0:00:20]} d5 {[%emt 0:02:41]} 6. Nf3 {[%emt 0:01:52]} O-O {[%emt 0:03:26]} 7. c4 {[%emt 0:03:18]} Bg4 {[%emt 0:10:25]} 8. h3 {[%emt 0:00:47]} Bc8 {[%emt 0:04:47]} 9. cxd5 {[%emt 0:00:32]} Qxd5 {[%emt 0:02:17]} 10. Nc3 {[%emt 0:00:28]} Qd8 {[%emt 0:01:37]} 11. Rc1 {[%emt 0:03:48]} a6 {[%emt 0:04:55]} 12. Be2 {[%emt 0:01:57]} Nc6 {[%emt 0:02:46]} 13. d4 {[%emt 0:01:15]} Ne7 {[%emt 0:06:12]} 14. O-O {[%emt 0:02:28]} c6 {[%emt 0:03:08]} 15. Nd2 {[%emt 0:02:28]} f5 {[%emt 0:06:27]} 16. Nb3 {[%emt 0:01:11]} Be6 {[%emt 0:06:50]} 17. Nc5 {[%emt 0:01:41]} Bc8 {[%emt 0:03:59]} 18. Bf3 {[%emt 0:13:32]} f4 {[%emt 0:06:14]} 19. Nb3 {[%emt 0:03:37]} fxe3 {[%emt 0:00:39]} 20. fxe3 {[%emt 0:00:10]} Nf5 {[%emt 0:00:22]} 21. Re1 {[%emt 0:00:57]} Bh6 {[%emt 0:04:56]} 22. Qd3 {[%emt 0:01:30]} Nh4 {[%emt 0:06:50]} 23. Rc2 {[%emt 0:03:56]} Nxf3+ {[%emt 0:02:20]} 24. gxf3 {[%emt 0:01:11]} Bxh3 {[%emt 0:00:31]} 25. Rh2 {[%emt 0:00:53]} Qg5+ {[%emt 0:02:20]} 26. Kh1 {[%emt 0:00:47]} Bf5 {[%emt 0:08:35]} 27. e4 {[%emt 0:01:53]} Be6 {[%emt 0:02:36]} 28. Rg1 {[%emt 0:01:17]} Qe3 {[%emt 0:00:25]} 29. Qxe3 Bxe3 {[%emt 0:00:09]} 30. Re1 {[%emt 0:04:05]} Bf4 {[%emt 0:00:19]} 31. Rb2 {[%emt 0:00:47]} Bxb3 {[%emt 0:00:15]} 32. Rxb3 {[%emt 0:00:22]} Bd2 {[%emt 0:00:26]} 33. Rd1 {[%emt 0:01:54]} Bxc3 {[%emt 0:01:14]} 34. Rxc3 {[%emt 0:00:09]} Rad8 {[%emt 0:00:17]} 35. Rcd3 {[%emt 0:03:13]} Rd7 {[%emt 0:01:35]} 36. d5 {[%emt 0:03:10]} Rfd8 {[%emt 0:00:41]} 37. d6 {[%emt 0:00:38]} f6 {[%emt 0:01:08]} 38. f4 {[%emt 0:00:40]} Kf7 {[%emt 0:00:22]} 39. f5 {[%emt 0:00:28]} Re8 {[%emt 0:00:58]} 40. fxg6+ {[%emt 0:06:17]} hxg6 {[%emt 0:00:22]} 41. Re3 {[%emt 0:33:07]} Re5 {[%emt 0:32:09]} 42. Rd4 {[%emt 0:01:11]} Ke6 {[%emt 0:00:00]} 43. Red3 {[%emt 0:00:00]} Rg5 {[%emt 0:00:00]} 44. Rh3 {[%emt 0:00:00]} Ke5 {[%emt 0:00:00]} 45. Rc4 {[%emt 0:00:00]} Rxd6 {[%emt 0:00:00]} 46. Rc5+ {[%emt 0:00:00]} Ke6 {[%emt 0:00:00]} 47. Rxg5 {[%emt 0:00:00]} fxg5 {[%emt 0:00:00]} 48. Re3 {[%emt 0:00:00]} Ke5 {[%emt 0:00:00]} 49. Kg2 {[%emt 0:00:00]} Kf4 {[%emt 0:00:00]} 50. Rf3+ {[%emt 0:00:00]} Kxe4 {[%emt 0:00:00]} 51. Rf7 {[%emt 0:00:00]} b5 {[%emt 0:00:00]} 52. Ra7 {[%emt 0:00:00]} Rd2+ {[%emt 0:00:00]} 53. Kf1 {[%emt 0:00:00]} Kf3 {[%emt 0:00:00]} 54. Rf7+ {[%emt 0:00:00]} Kg3 {[%emt 0:00:00]} 55. Ra7 {[%emt 0:00:00]} Rc2 {[%emt 0:00:00]} 56. Rxa6 {[%emt 0:00:00]} Kf3 {[%emt 0:00:00]} 57. Ke1 {[%emt 0:00:00]} g4 {[%emt 0:00:00]} 58. Ra7 {[%emt 0:00:00]} g3 {[%emt 0:00:49]} 59. Rf7+ {[%emt 0:00:00]} Kg4 {[%emt 0:00:26]} 60. Kf1 {[%emt 0:00:00]} g2+ {[%emt 0:00:56]} 0-1

[Event "FRA-ch Open A-D 2018"]
[Site "Nimes"]
[Date "2018.08.25"]
[Round "8"]
[White "Sithisak, Remi"]
[Black "Serrano Soriano, Emilio Jose"]
[Result "1-0"]
[ECO "E10"]
[WhiteElo "1360"]
[BlackElo "1395"]
[Annotator "NA RC"]
[PlyCount "73"]
[EventDate "2018.08.18"]
[EventType "tourn"]
[EventCountry "FRA"]
[SourceTitle "playchess.com"]
[Source "ChessBase"]
[SourceQuality "1"]
[TimeControl "40/5400+30:1800+30"]

1. d4 {[%emt 0:00:00]} Nf6 {[%emt 0:00:00]} 2. c4 {[%emt 0:00:02]} e6 {[%emt 0:00:02]} 3. Nf3 {[%emt 0:00:27]} h6 {[%emt 0:00:32]} 4. a3 {[%emt 0:01:32]} b6 {[%emt 0:00:44]} 5. Nc3 {[%emt 0:00:43]} Bb7 {[%emt 0:00:13]} 6. Bf4 {[%emt 0:00:42]} a6 {[%emt 0:00:39]} 7. e3 {[%emt 0:01:37]} Nh5 {[%emt 0:01:25]} 8. Bg3 {[%emt 0:03:13]} Nxg3 {[%emt 0:00:15]} 9. hxg3 {[%emt 0:00:07]} Be7 {[%emt 0:02:05]} 10. Be2 {[%emt 0:03:16]} d6 {[%emt 0:01:10]} 11. Qc2 {[%emt 0:02:11]} Nd7 {[%emt 0:00:29]} 12. b4 {[%emt 0:04:10]} Rc8 {[%emt 0:07:21]} 13. O-O {[%emt 0:13:37]} O-O {[%emt 0:01:07]} 14. Rfd1 {[%emt 0:07:46]} Nf6 {[%emt 0:02:03]} 15. e4 {[%emt 0:10:37]} Nh7 {[%emt 0:05:28]} 16. e5 {[%emt 0:06:35]} Qe8 {[%emt 0:12:04]} 17. Bd3 {[%emt 0:02:49]} Ng5 {[%emt 0:00:30]} 18. Nh4 {[%emt 0:01:40]} f5 {[%emt 0:03:03]} 19. exf6 {[%emt 0:03:09]} Bxf6 {[%emt 0:24:36]} 20. Bg6 {[%emt 0:06:38]} Qc6 {[%emt 0:05:56]} 21. f4 {[%emt 0:14:54]} Nh3+ {[%emt 0:02:20]} 22. gxh3 {[%emt 0:00:17]} Bxh4 {[%emt 0:00:24]} 23. Be4 {[%emt 0:00:50]} d5 {[%emt 0:00:24]} 24. cxd5 {[%emt 0:00:33]} exd5 {[%emt 0:00:24]} 25. Bxd5+ {[%emt 0:00:31]} Qxd5 {[%emt 0:00:16]} 26. Nxd5 {[%emt 0:00:06]} Bxd5 {[%emt 0:00:02]} 27. gxh4 {[%emt 0:00:51]} Rxf4 {[%emt 0:00:14]} 28. Rf1 {[%emt 0:03:31]} Rxh4 {[%emt 0:00:24]} 29. Qf5 {[%emt 0:02:28]} Rd8 {[%emt 0:01:04]} 30. Rae1 {[%emt 0:01:48]} Rxd4 {[%emt 0:05:39]} 31. Rd1 {[%emt 0:01:31]} Rxd1 {[%emt 0:02:32]} 32. Rxd1 {[%emt 0:00:10]} c6 {[%emt 0:00:08]} 33. a4 {[%emt 0:00:56]} Rf8 {[%emt 0:00:51]} 34. Rxd5 {[%emt 0:02:16]} Rxf5 {[%emt 0:01:05]} 35. Rxf5 {[%emt 0:00:08]} Kh7 {[%emt 0:00:50]} 36. Re5 {[%emt 0:00:40]} g5 {[%emt 0:00:19]} 37. Re6 {[%emt 0:00:24]} 1-0

[Event "FRA-ch Open A-D 2018"]
[Site "Nimes"]
[Date "2018.08.26"]
[Round "9"]
[White "Giacomini, Hector"]
[Black "Weill, Roland"]
[Result "1-0"]
[ECO "B06"]
[WhiteElo "2196"]
[BlackElo "2138"]
[Annotator "NA"]
[PlyCount "109"]
[EventDate "2018.08.18"]
[EventType "tourn"]
[EventCountry "FRA"]
[SourceTitle "playchess.com"]
[Source "ChessBase"]
[SourceQuality "1"]
[TimeControl "40/5400+30:1800+30"]

1. Nf3 {[%emt 0:00:00]} g6 {[%emt 0:04:03]} 2. d4 {[%emt 0:00:00]} Bg7 {[%emt 0:00:06]} 3. e4 {[%emt 0:00:08]} d6 {[%emt 0:00:16]} 4. c3 {[%emt 0:00:11]} Nf6 {[%emt 0:00:31]} 5. Bd3 {[%emt 0:00:32]} O-O {[%emt 0:00:57]} 6. O-O {[%emt 0:00:17]} Nc6 {[%emt 0:00:51]} 7. h3 {[%emt 0:00:55]} e5 {[%emt 0:01:23] LiveBook: 347 Games} 8. Nbd2 {[%emt 0:00:59]} d5 {[%emt 0:16:01] B07: Pirc Defence: Miscellaneous Systems} (8... Nd7 9. Nb3 a5 10. Be3 a4 11. Nbd2 a3 12. b3 exd4 13. Nxd4 Nc5 14. Bc2 Re8 15. Rc1 Bd7 16. Re1 {0-1 (43) Aronian,L (2793)-Vachier Lagrave,M (2796) Leuven 2017}) 9. Nxe5 {[%emt 0:05:19]} Nxe5 {[%emt 0:00:30]} 10. dxe5 {[%emt 0:00:30]} Nxe4 {[%emt 0:00:30]} 11. Nf3 $146 {[%emt 0:00:30]} ({Predecessor:} 11. Bxe4 dxe4 12. Nxe4 Qxd1 13. Rxd1 Bxe5 14. Bg5 Bf5 15. Nf6+ Bxf6 16. Bxf6 {½-½ (40) Sandipan,C (2593)-Nouri,H (2363) Mumbai 2016}) 11... f5 {[%emt 0:00:30]} 12. c4 {[%emt 0:00:30]} Nc5 {[%emt 0:00:30]} 13. Bg5 {[%emt 0:00:30]} Qd7 {[%emt 0:00:30]} 14. cxd5 {[%emt 0:00:30]} Qxd5 {[%emt 0:00:30]} 15. Bc2 {[%emt 0:00:30]} Qxd1 {[%emt 0:00:30]} 16. Rfxd1 {[%emt 0:00:30]} Ne6 {[%emt 0:00:30]} 17. Bb3 {[%emt 0:00:30]} Kh8 {[%emt 0:00:30]} 18. Rac1 {[%emt 0:00:30]} Nxg5 {[%emt 0:00:30]} 19. Nxg5 {[%emt 0:00:30]} Bxe5 {[%emt 0:00:30]} 20. Nf7+ {[%emt 0:00:30]} Rxf7 {[%emt 0:00:30]} 21. Bxf7 {[%emt 0:00:30]} Kg7 {[%emt 0:00:30]} 22. Bb3 {[%emt 0:00:30]} Bd6 {[%emt 0:00:30]} 23. Rxd6 {[%emt 0:00:30]} cxd6 {[%emt 0:00:30]} 24. Rc7+ {[%emt 0:00:30]} Kf6 {[%emt 0:00:30]} 25. Rxh7 {[%emt 0:00:30]} Be6 {[%emt 0:00:30]} 26. Bxe6 {[%emt 0:00:30]} Kxe6 {[%emt 0:00:30]} 27. Rxb7 {[%emt 0:00:30]} a5 {[%emt 0:00:30]} 28. Rb5 {[%emt 0:00:30]} a4 {[%emt 0:00:30]} 29. g4 {[%emt 0:00:30]} fxg4 {[%emt 0:00:30]} 30. hxg4 {[%emt 0:00:30]} Rc8 {[%emt 0:00:30]} 31. Kg2 {[%emt 0:00:30]} Rc2 {[%emt 0:00:30]} 32. Kg3 {[%emt 0:00:30]} a3 {[%emt 0:00:30]} 33. bxa3 {[%emt 0:00:30]} Rxa2 {[%emt 0:00:30]} 34. Rb3 g5 {[%emt 0:58:35]} 35. f4 {[%emt 0:49:32]} gxf4+ {[%emt 0:02:41]} 36. Kxf4 {[%emt 0:00:35]} Kf6 {[%emt 0:01:57]} 37. Rd3 {[%emt 0:01:41]} d5 {[%emt 0:01:02]} 38. Rb3 {[%emt 0:07:20]} Rf2+ {[%emt 0:01:40]} 39. Rf3 {[%emt 0:00:16]} Ra2 {[%emt 0:00:36]} 40. g5+ {[%emt 0:04:47]} Kg6 {[%emt 0:00:56]} 41. Rg3 {[%emt 0:34:50]} (41. Rd3 $16) 41... Ra1 {[%emt 0:35:25]} 42. Ke5 {[%emt 0:01:17]} Rd1 {[%emt 0:00:06]} 43. Rg4 {[%emt 0:11:54]} Ra1 {[%emt 0:00:00]} 44. a4 {[%emt 0:00:00]} d4 {[%emt 0:00:00]} 45. Rxd4 {[%emt 0:00:00]} Kxg5 {[%emt 0:00:00]} 46. Rb4 {[%emt 0:00:00]} Ra2 {[%emt 0:00:00]} 47. Kd6 {[%emt 0:00:00]} Kf6 {[%emt 0:00:00]} 48. Re4 {[%emt 0:00:00]} Rc2 {[%emt 0:00:00]} 49. a5 {[%emt 0:00:00]} Ra2 {[%emt 0:00:00]} 50. Re5 {[%emt 0:00:00]} Rd2+ {[%emt 0:00:00]} 51. Rd5 {[%emt 0:00:00]} Ra2 {[%emt 0:00:00]} 52. Rb5 {[%emt 0:00:00]} Rc2 {[%emt 0:00:00]} 53. a6 {[%emt 0:00:00]} Ra2 {[%emt 0:00:00]} 54. Rb6 {[%emt 0:00:00]} Ra1 {[%emt 0:00:00]} 55. Kc7+ {[%emt 0:00:00]} 1-0

[Event "FRA-ch Open A-D 2018"]
[Site "Nimes"]
[Date "2018.08.26"]
[Round "9"]
[White "Lux, Hugo de Melo"]
[Black "Bianchi, Guillaume"]
[Result "1/2-1/2"]
[ECO "B23"]
[WhiteElo "2147"]
[BlackElo "2064"]
[Annotator "NA"]
[PlyCount "61"]
[EventDate "2018.08.18"]
[EventType "tourn"]
[EventCountry "FRA"]
[SourceTitle "playchess.com"]
[Source "ChessBase"]
[SourceQuality "1"]
[TimeControl "40/5400+30:1800+30"]

1. e4 {[%emt 0:00:00]} c5 {[%emt 0:00:00]} 2. Nc3 {[%emt 0:00:00]} e6 {[%emt 0:00:58]} 3. f4 {[%emt 0:00:00]} a6 {[%emt 0:00:53]} 4. Nf3 {[%emt 0:02:49]} Nc6 {[%emt 0:01:38]} 5. g3 {[%emt 0:01:15]} d6 {[%emt 0:06:16]} 6. Bg2 {[%emt 0:00:19]} Nf6 {[%emt 0:07:37]} 7. O-O {[%emt 0:00:25]} Be7 {[%emt 0:01:32]} 8. b3 {[%emt 0:11:26]} Qc7 {[%emt 0:03:39]} 9. Bb2 {[%emt 0:03:00]} O-O {[%emt 0:06:43]} 10. Qe2 $11 {[%emt 0:05:43]} Nd4 {[%emt 0:02:11]} 11. Nxd4 {[%emt 0:03:42]} cxd4 {[%emt 0:01:54]} 12. Nd1 {[%emt 0:00:09]} e5 {[%emt 0:01:12]} 13. f5 {[%emt 0:01:17]} b5 {[%emt 0:05:29]} 14. Rc1 {[%emt 0:24:07]} Bb7 {[%emt 0:02:22]} 15. Nf2 {[%emt 0:00:09]} b4 {[%emt 0:04:38]} 16. c4 {[%emt 0:23:03]} bxc3 {[%emt 0:03:28]} 17. dxc3 {[%emt 0:00:37]} dxc3 {[%emt 0:00:55]} 18. Rxc3 {[%emt 0:00:01]} Qb6 {[%emt 0:01:30]} 19. Rfc1 {[%emt 0:05:22]} Rfc8 {[%emt 0:01:05]} 20. Rxc8+ {[%emt 0:00:28]} Rxc8 {[%emt 0:00:06]} 21. Rxc8+ {[%emt 0:00:02]} Bxc8 {[%emt 0:00:06]} 22. Bc1 {[%emt 0:00:25]} Bb7 {[%emt 0:05:58]} 23. Be3 {[%emt 0:02:10]} Qb4 {[%emt 0:02:46]} 24. Qd2 {[%emt 0:04:05]} Qxd2 {[%emt 0:05:17]} 25. Bxd2 {[%emt 0:00:02]} Kf8 {[%emt 0:03:59]} 26. Kf1 {[%emt 0:00:34]} Bd8 {[%emt 0:01:35]} 27. Bg5 {[%emt 0:04:50]} h6 {[%emt 0:01:40]} 28. Bxf6 {[%emt 0:00:04]} Bxf6 {[%emt 0:00:04]} 29. Ke2 {[%emt 0:00:31]} Bd8 {[%emt 0:01:01]} 30. Nd1 {[%emt 0:00:49]} Bb6 {[%emt 0:07:52]} 31. Nc3 {[%emt 0:00:05]} 1/2-1/2